fUST/lending_fUST_20250518
["ID","MTS","AMOUNT","RATE_DAILY","PERIOD"]
[361425068,1747563045538,-450.0,0.00013835,2]
[361425070,1747563045552,-450.0,0.00013835,2]
[361425073,1747563045568,-450.0,0.00013835,2]
[361425075,1747563045581,-450.0,0.00013835,2]
[361425078,1747563045596,-350.0,0.00013835,2]
[361425080,1747563045609,-450.0,0.00013835,2]
[361425082,1747563045621,-450.0,0.00013835,2]
[361425084,1747563045632,-450.0,0.00013835,2]
[361425086,1747563045642,-450.0,0.00013835,2]
[361425089,1747563045654,-589.11155793,0.00013835,2]
[361425091,1747563045667,-450.0,0.00013835,2]
[361425093,1747563045681,-450.0,0.00013835,2]
[361425096,1747563045693,-450.0,0.00013835,2]
[361425098,1747563045703,-450.0,0.00013835,2]
[361425100,1747563045715,-351.23645003,0.00013835,2]
[361425102,1747563045727,-502.61767211,0.00013835,2]
[361425105,1747563045741,-450.0,0.00013835,2]
[361425107,1747563045752,-450.0,0.00013835,2]
[361425109,1747563045762,-356.22386247,0.00013835,2]
[361425111,1747563045774,-450.0,0.00013835,2]
[361425114,1747563045786,-450.0,0.00013835,2]
[361425116,1747563045797,-350.0,0.00013835,2]
[361425118,1747563045809,-450.0,0.00013835,2]
[361425120,1747563045820,-450.0,0.00013835,2]
[361425122,1747563045831,-355.7974184,0.00013835,2]
[361425125,1747563045845,-495.80339789,0.00013835,2]
[361425127,1747563045856,-357.68093883,0.00013835,2]
[361425129,1747563045867,-352.3766132,0.00013835,2]
[361425131,1747563045878,-356.96468337,0.00013835,2]
[361425134,1747563045890,-450.0,0.00013835,2]
[361425136,1747563045901,-350.0,0.00013835,2]
[361425138,1747563045912,-209.93498837,0.00013835,2]
[361425140,1747563045923,-450.0,0.00013835,2]
[361425142,1747563045934,-450.0,0.00013835,2]
[361425144,1747563045945,-450.0,0.00013835,2]
[361425147,1747563045956,-450.0,0.00013835,2]
[361425149,1747563045967,-450.0,0.00013835,2]
[361425151,1747563045978,-450.0,0.00013835,2]
[361425153,1747563045990,-450.0,0.00013835,2]
[361425156,1747563046002,-350.0,0.00013835,2]
[361425158,1747563046013,-450.0,0.00013835,2]
[361425160,1747563046024,-350.0,0.00013835,2]
[361425162,1747563046035,-450.0,0.00013835,2]
[361425164,1747563046046,-350.0,0.00013835,2]
[361425167,1747563046058,-450.0,0.00013835,2]
[361425169,1747563046069,-450.0,0.00013835,2]
[361425171,1747563046079,-355.79698677,0.00013835,2]
[361425173,1747563046091,-450.0,0.00013835,2]
[361425175,1747563046102,-450.0,0.00013835,2]
[361425178,1747563046113,-450.0,0.00013835,2]
[361425180,1747563046123,-450.0,0.00013835,2]
[361425182,1747563046134,-450.0,0.00013835,2]
[361425184,1747563046144,-450.0,0.00013835,2]
[361425186,1747563046155,-450.0,0.00013835,2]
[361425190,1747563046167,-246.81480145,0.00013835,2]
[361425194,1747563046178,-450.0,0.00013835,2]
[361425197,1747563046189,-450.0,0.00013835,2]
[361425199,1747563046200,-360.96340995,0.00013835,2]
[361425201,1747563046211,-450.0,0.00013835,2]
[361425203,1747563046222,-358.71223399,0.00013835,2]
[361425206,1747563046234,-935.74,0.00013835,2]
[361425208,1747563046246,-450.0,0.00013835,2]
[361425210,1747563046257,-366.65435448,0.00013835,2]
[361425212,1747563046268,-450.0,0.00013835,2]
[361425215,1747563046280,-155.98513885,0.00013835,2]
[361425217,1747563046291,-450.0,0.00013835,2]
[361425219,1747563046303,-350.9224422,0.00013835,2]
[361425221,1747563046314,-450.0,0.00013835,2]
[361425223,1747563046325,-450.0,0.00013835,2]
[361425225,1747563046336,-584.13936134,0.00013835,2]
[361425228,1747563046348,-450.0,0.00013835,2]
[361425230,1747563046358,-450.0,0.00013835,2]
[361425232,1747563046370,-352.89542418,0.00013835,2]
[361425234,1747563046381,-450.0,0.00013835,2]
[361425236,1747563046393,-618.84,0.00013835,2]
[361425239,1747563046405,-450.0,0.00013835,2]
[361425241,1747563046416,-450.0,0.00013835,2]
[361425243,1747563046427,-450.0,0.00013835,2]
[361425245,1747563046439,-450.0,0.00013835,2]
[361425247,1747563046450,-357.07815704,0.00013835,2]
[361425250,1747563046461,-450.0,0.00013835,2]
[361425252,1747563046472,-450.0,0.00013835,2]
[361425254,1747563046483,-3759.57113456,0.000139,2]
[361425256,1747563046494,-500.0,0.00013971,2]
[361425258,1747563046505,-282.69,0.00013972,2]
[361425261,1747563046517,-300.0,0.00013972,2]
[361425263,1747563046528,-300.0,0.00013972,2]
[361425265,1747563046540,-300.0,0.00013972,2]
[361425267,1747563046551,-300.0,0.00013972,2]
[361425269,1747563046566,-300.0,0.00013972,2]
[361425272,1747563046577,-221.65358283,0.00013972,2]
[361425274,1747563046589,-304.04898159,0.00013972,2]
[361425276,1747563046600,-300.0,0.00013972,2]
[361425278,1747563046611,-300.0,0.00013972,2]
[361425280,1747563046622,-350.34,0.00013972,2]
[361425300,1747563046751,-450.0,0.00013972,2]
[361425303,1747563046805,-450.0,0.00013972,2]
[361425305,1747563046816,-450.0,0.00013972,2]
[361425307,1747563046825,-450.0,0.00013972,2]
[361425309,1747563046835,-450.0,0.00013972,2]
[361425311,1747563046844,-483.2,0.00013972,2]
[361425313,1747563046853,-1437.11,0.00013972,2]
[361425315,1747563046862,-450.0,0.00013972,2]
[361425317,1747563046872,-450.0,0.00013972,2]
[361425319,1747563046882,-450.0,0.00013972,2]
[361425321,1747563046892,-1099.66,0.00013972,2]
[361425323,1747563046901,-364.86,0.00013972,2]
[361425325,1747563046911,-430.67927095,0.00013972,2]
[361425326,1747563046920,-450.0,0.00013972,2]
[361425328,1747563046930,-230.08,0.00013972,2]
[361425330,1747563046939,-480.48,0.00013972,2]
[361425333,1747563046948,-450.0,0.00013972,2]
[361425335,1747563046958,-281.14,0.00013972,2]
[361425337,1747563046967,-552.26997223,0.00013972,2]
[361425339,1747563046976,-450.0,0.00013972,2]
[361425341,1747563046985,-450.0,0.00013972,2]
[361425343,1747563046995,-300.0,0.00013972,2]
[361425345,1747563047006,-300.0,0.00013972,2]
[361425347,1747563047015,-300.0,0.00013972,2]
[361425349,1747563047024,-569.32,0.00013972,2]
[361425351,1747563047033,-450.0,0.00013972,2]
[361425353,1747563047043,-277.34,0.00013972,2]
[361425355,1747563047052,-260.1,0.00013972,2]
[361425357,1747563047060,-300.0,0.00013972,2]
[361425359,1747563047071,-450.0,0.00013972,2]
[361425361,1747563047081,-481.83,0.00013972,2]
[361425363,1747563047090,-450.0,0.00013972,2]
[361425364,1747563047099,-300.0,0.00013972,2]
[361425367,1747563047108,-450.0,0.00013972,2]
[361425369,1747563047117,-508.14,0.00013972,2]
[361425371,1747563047127,-300.0,0.00013972,2]
[361425372,1747563047136,-300.0,0.00013972,2]
[361425375,1747563047145,-450.0,0.00013972,2]
[361425377,1747563047154,-564.98108851,0.00013972,2]
[361425379,1747563047163,-300.0,0.00013972,2]
[361425381,1747563047172,-450.0,0.00013972,2]
[361425383,1747563047182,-450.0,0.00013972,2]
[361425385,1747563047191,-450.0,0.00013972,2]
[361425387,1747563047200,-450.0,0.00013972,2]
[361425389,1747563047210,-300.0,0.00013972,2]
[361425391,1747563047219,-450.0,0.00013972,2]
[361425393,1747563047228,-304.40254934,0.00013972,2]
[361425395,1747563047237,-320.99160513,0.00013972,2]
[361425397,1747563047247,-300.0,0.00013972,2]
[361425399,1747563047256,-300.0,0.00013972,2]
[361425401,1747563047266,-450.0,0.00013972,2]
[361425403,1747563047275,-450.0,0.00013972,2]
[361425405,1747563047285,-450.0,0.00013972,2]
[361425407,1747563047295,-450.0,0.00013972,2]
[361425409,1747563047304,-450.0,0.00013972,2]
[361425411,1747563047313,-300.0,0.00013972,2]
[361425413,1747563047324,-450.0,0.00013972,2]
[361425415,1747563047334,-300.0,0.00013972,2]
[361425417,1747563047343,-300.0,0.00013972,2]
[361425419,1747563047352,-450.0,0.00013972,2]
[361425421,1747563047362,-300.0,0.00013972,2]
[361425423,1747563047371,-450.0,0.00013972,2]
[361425425,1747563047381,-300.0,0.00013972,2]
[361425427,1747563047390,-450.0,0.00013972,2]
[361425429,1747563047400,-439.59053848,0.00013972,2]
[361425431,1747563047409,-450.0,0.00013972,2]
[361425433,1747563047418,-450.0,0.00013972,2]
[361425435,1747563047427,-935.74,0.00013972,2]
[361425437,1747563047437,-450.0,0.00013972,2]
[361425439,1747563047446,-450.0,0.00013972,2]
[361425441,1747563047455,-450.0,0.00013972,2]
[361425443,1747563047464,-317.76999194,0.00013972,2]
[361425445,1747563047474,-300.0,0.00013972,2]
[361425448,1747563047483,-450.0,0.00013972,2]
[361425450,1747563047493,-450.0,0.00013972,2]
[361425452,1747563047502,-450.0,0.00013972,2]
[361425454,1747563047512,-618.84,0.00013972,2]
[361425456,1747563047521,-300.0,0.00013972,2]
[361425458,1747563047531,-450.0,0.00013972,2]
[361425460,1747563047541,-305.58150225,0.00013972,2]
[361425462,1747563047550,-300.0,0.00013972,2]
[361425464,1747563047561,-300.0,0.00013972,2]
[361425466,1747563047571,-165.60720752,0.00013972,2]
[361425468,1747563047580,-512.24827771,0.00013994,2]
[361425470,1747563047591,-850.01656524,0.00013999,2]
[361425472,1747563047600,-500.0,0.0001407,2]
[361425474,1747563047610,-407.67132712,0.0001407,2]
[361425476,1747563047620,-500.0,0.0001407,2]
[361425478,1747563047630,-500.0,0.00014073,2]
[361425480,1747563047640,-160.0,0.00014075,2]
[361425482,1747563047649,-422.53311782,0.00014086,2]
[361425484,1747563047659,-160.0,0.00014087,2]
[361425486,1747563047668,-160.0,0.00014087,2]
[361425488,1747563047677,-160.0,0.00014087,2]
[361425490,1747563047686,-500.0,0.00014108,2]
[361425492,1747563047695,-450.0,0.00014109,2]
[361425494,1747563047705,-450.0,0.00014109,2]
[361425496,1747563047714,-450.0,0.00014109,2]
[361425498,1747563047724,-483.2,0.00014109,2]
[361425500,1747563047733,-1437.11,0.00014109,2]
[361425502,1747563047742,-450.0,0.00014109,2]
[361425504,1747563047751,-504.5,0.00014109,2]
[361425506,1747563047760,-1099.66,0.00014109,2]
[361425508,1747563047770,-450.0,0.00014109,2]
[361425510,1747563047779,-425.46,0.00014109,2]
[361425512,1747563047788,-450.0,0.00014109,2]
[361425514,1747563047797,-450.0,0.00014109,2]
[361425516,1747563047807,-175.2,0.00014109,2]
[361425518,1747563047816,-481.83,0.00014109,2]
[361425520,1747563047825,-450.0,0.00014109,2]
[361425522,1747563047835,-450.0,0.00014109,2]
[361425524,1747563047844,-558.96,0.00014109,2]
[361425526,1747563047852,-450.0,0.00014109,2]
[361425528,1747563047862,-450.0,0.00014109,2]
[361425530,1747563047871,-450.0,0.00014109,2]
[361425532,1747563047880,-450.0,0.00014109,2]
[361425534,1747563047889,-450.0,0.00014109,2]
[361425536,1747563047899,-450.0,0.00014109,2]
[361425538,1747563047908,-450.0,0.00014109,2]
[361425540,1747563047917,-450.0,0.00014109,2]
[361425542,1747563047927,-935.74,0.00014109,2]
[361425544,1747563047936,-450.0,0.00014109,2]
[361425546,1747563047946,-450.0,0.00014109,2]
[361425548,1747563047955,-250.0,0.00014109,2]
[361425550,1747563047964,-618.84,0.00014109,2]
[361425552,1747563047973,-500.0,0.00014112,2]
[361425554,1747563047982,-500.0,0.00014112,2]
[361425556,1747563047992,-468.7441422,0.00014189,2]
[361425558,1747563048001,-1059.42912766,0.00014221,2]
[361425560,1747563048010,-500.0,0.00014221,2]
[361425562,1747563048019,-1003.84782089,0.00014221,2]
[361425564,1747563048029,-445.02725255,0.00014221,2]
[361425566,1747563048038,-1000.0,0.00014221,2]
[361425568,1747563048047,-500.0,0.00014221,2]
[361425570,1747563048056,-209.69237098,0.00014221,2]
[361425572,1747563048065,-500.0,0.00014221,2]
[361425574,1747563048075,-450.0,0.00014246,2]
[361425576,1747563048085,-450.0,0.00014246,2]
[361425578,1747563048094,-450.0,0.00014246,2]
[361425580,1747563048104,-483.2,0.00014246,2]
[361425582,1747563048114,-1437.11,0.00014246,2]
[361425584,1747563048122,-450.0,0.00014246,2]
[361425586,1747563048132,-1099.66,0.00014246,2]
[361425588,1747563048142,-450.0,0.00014246,2]
[361425590,1747563048151,-450.0,0.00014246,2]
[361425592,1747563048160,-450.0,0.00014246,2]
[361425594,1747563048169,-481.83,0.00014246,2]
[361425596,1747563048179,-450.0,0.00014246,2]
[361425598,1747563048189,-450.0,0.00014246,2]
[361425600,1747563048197,-450.0,0.00014246,2]
[361425602,1747563048207,-444.84,0.00014246,2]
[361425605,1747563048217,-450.0,0.00014246,2]
[361425607,1747563048226,-450.0,0.00014246,2]
[361425609,1747563048235,-450.0,0.00014246,2]
[361425610,1747563048244,-450.0,0.00014246,2]
[361425612,1747563048254,-450.0,0.00014246,2]
[361425615,1747563048263,-450.0,0.00014246,2]
[361425617,1747563048273,-935.74,0.00014246,2]
[361425619,1747563048283,-450.0,0.00014246,2]
[361425621,1747563048292,-450.0,0.00014246,2]
[361425623,1747563048302,-618.84,0.00014246,2]
[361425625,1747563048311,-3759.5711344,0.00014279,2]
[361425627,1747563048322,-352.87004478,0.00014329,2]
[361425629,1747563048332,-500.0,0.00014382,2]
[361425631,1747563048341,-500.0,0.00014382,2]
[361425633,1747563048351,-500.0,0.00014382,2]
[361425635,1747563048360,-500.0,0.00014382,2]
[361425637,1747563048370,-500.0,0.00014382,2]
[361425639,1747563048379,-532.58226402,0.00014382,2]
[361425641,1747563048389,-500.0,0.00014382,2]
[361425643,1747563048398,-500.0,0.00014382,2]
[361425645,1747563048407,-500.0,0.00014382,2]
[361425647,1747563048416,-214.2388361,0.00014382,2]
[361425649,1747563048426,-500.0,0.00014382,2]
[361425651,1747563048436,-500.0,0.00014382,2]
[361425653,1747563048446,-500.0,0.00014382,2]
[361425655,1747563048456,-500.0,0.00014382,2]
[361425657,1747563048466,-450.0,0.00014383,2]
[361425659,1747563048476,-450.0,0.00014383,2]
[361425661,1747563048486,-450.0,0.00014383,2]
[361425663,1747563048495,-483.2,0.00014383,2]
[361425665,1747563048505,-1437.11,0.00014383,2]
[361425667,1747563048514,-450.0,0.00014383,2]
[361425669,1747563048524,-1099.66,0.00014383,2]
[361425671,1747563048534,-450.0,0.00014383,2]
[361425673,1747563048543,-450.0,0.00014383,2]
[361425674,1747563048553,-450.0,0.00014383,2]
[361425675,1747563048562,-481.83,0.00014383,2]
[361425676,1747563048573,-450.0,0.00014383,2]
[361425677,1747563048583,-450.0,0.00014383,2]
[361425678,1747563048592,-450.0,0.00014383,2]
[361425679,1747563048602,-450.0,0.00014383,2]
[361425680,1747563048611,-450.0,0.00014383,2]
[361425681,1747563048621,-445.14,0.00014383,2]
[361425682,1747563048631,-221.58,0.00014383,2]
[361425683,1747563048640,-150.39,0.00014383,2]
[361425684,1747563048650,-935.74,0.00014383,2]
[361425685,1747563048660,-450.0,0.00014383,2]
[361425686,1747563048669,-450.0,0.00014383,2]
[361425687,1747563048678,-618.84,0.00014383,2]
[361425688,1747563048687,-250.0,0.000144,2]
[361425689,1747563048697,-250.0,0.000144,2]
[361425690,1747563048707,-500.0,0.00014429,2]
[361425691,1747563048716,-500.0,0.00014429,2]
[361425692,1747563048726,-500.0,0.00014429,2]
[361425693,1747563048736,-500.0,0.000145,2]
[361425694,1747563048746,-500.0,0.00014519,2]
[361425695,1747563048756,-450.0,0.0001452,2]
[361425696,1747563048765,-450.0,0.0001452,2]
[361425697,1747563048774,-450.0,0.0001452,2]
[361425698,1747563048784,-483.2,0.0001452,2]
[361425699,1747563048794,-1437.11,0.0001452,2]
[361425700,1747563048803,-450.0,0.0001452,2]
[361425702,1747563048813,-1099.66,0.0001452,2]
[361425704,1747563048823,-418.86,0.0001452,2]
[361425706,1747563048833,-450.0,0.0001452,2]
[361425708,1747563048843,-275.1,0.0001452,2]
[361425710,1747563048852,-481.83,0.0001452,2]
[361425712,1747563048861,-450.0,0.0001452,2]
[361425714,1747563048871,-450.0,0.0001452,2]
[361425716,1747563048880,-450.0,0.0001452,2]
[361425718,1747563048889,-450.0,0.0001452,2]
[361425720,1747563048898,-450.0,0.0001452,2]
[361425722,1747563048909,-935.74,0.0001452,2]
[361425724,1747563048919,-450.0,0.0001452,2]
[361425726,1747563048929,-450.0,0.0001452,2]
[361425728,1747563048939,-618.84,0.0001452,2]
[361425730,1747563048948,-500.0,0.00014539,2]
[361425732,1747563048958,-500.0,0.000146,2]
[361425734,1747563048968,-500.0,0.000146,2]
[361425736,1747563048978,-450.0,0.00014657,2]
[361425738,1747563048988,-450.0,0.00014657,2]
[361425741,1747563048998,-450.0,0.00014657,2]
[361425742,1747563049007,-483.2,0.00014657,2]
[361425744,1747563049016,-1437.11,0.00014657,2]
[361425746,1747563049025,-450.0,0.00014657,2]
[361425748,1747563049034,-1099.66,0.00014657,2]
[361425750,1747563049043,-450.0,0.00014657,2]
[361425752,1747563049052,-481.83,0.00014657,2]
[361425754,1747563049062,-450.0,0.00014657,2]
[361425756,1747563049071,-169.52,0.00014657,2]
[361425758,1747563049081,-450.0,0.00014657,2]
[361425760,1747563049091,-450.0,0.00014657,2]
[361425762,1747563049100,-450.0,0.00014657,2]
[361425764,1747563049109,-935.74,0.00014657,2]
[361425766,1747563049119,-450.0,0.00014657,2]
[361425768,1747563049128,-450.0,0.00014657,2]
[361425770,1747563049138,-618.84,0.00014657,2]
[361425772,1747563049147,-3759.5711344,0.00014659,2]
[361425774,1747563049157,-583.24249027,0.0001466,2]
[361425776,1747563049166,-2351.0,0.00014674,2]
[361425778,1747563049175,-587.0,0.00014756,2]
[361425780,1747563049185,-194.0,0.00014756,2]
[361425782,1747563049194,-500.0,0.00014793,2]
[361425784,1747563049204,-450.0,0.00014794,2]
[361425786,1747563049214,-450.0,0.00014794,2]
[361425788,1747563049223,-450.0,0.00014794,2]
[361425789,1747563049233,-483.2,0.00014794,2]
[361425791,1747563049244,-1437.11,0.00014794,2]
[361425793,1747563049252,-450.0,0.00014794,2]
[361425795,1747563049262,-1099.66,0.00014794,2]
[361425797,1747563049271,-450.0,0.00014794,2]
[361425799,1747563049280,-481.83,0.00014794,2]
[361425801,1747563049289,-450.0,0.00014794,2]
[361425803,1747563049299,-450.0,0.00014794,2]
[361425805,1747563049309,-450.0,0.00014794,2]
[361425807,1747563049322,-450.0,0.00014794,2]
[361425809,1747563049331,-935.74,0.00014794,2]
[361425811,1747563049341,-450.0,0.00014794,2]
[361425813,1747563049350,-450.0,0.00014794,2]
[361425815,1747563049359,-618.84,0.00014794,2]
[361425817,1747563049368,-500.0,0.0001493,2]
[361425819,1747563049378,-500.0,0.0001493,2]
[361425821,1747563049387,-500.0,0.0001493,2]
[361425823,1747563049396,-500.0,0.0001493,2]
[361425825,1747563049405,-500.0,0.0001493,2]
[361425827,1747563049415,-151.0,0.0001493,2]
[361425829,1747563049424,-151.0,0.0001493,2]
[361425831,1747563049434,-151.0,0.0001493,2]
[361425833,1747563049443,-151.0,0.0001493,2]
[361425835,1747563049452,-151.0,0.0001493,2]
[361425837,1747563049462,-450.0,0.00014931,2]
[361425839,1747563049471,-450.0,0.00014931,2]
[361425841,1747563049481,-450.0,0.00014931,2]
[361425842,1747563049490,-483.2,0.00014931,2]
[361425845,1747563049500,-1437.11,0.00014931,2]
[361425846,1747563049510,-399.5,0.00014931,2]
[361425849,1747563049520,-1099.66,0.00014931,2]
[361425850,1747563049530,-450.0,0.00014931,2]
[361425852,1747563049539,-481.83,0.00014931,2]
[361425854,1747563049548,-450.0,0.00014931,2]
[361425856,1747563049559,-450.0,0.00014931,2]
[361425858,1747563049570,-450.0,0.00014931,2]
[361425861,1747563049581,-450.0,0.00014931,2]
[361425863,1747563049591,-935.74,0.00014931,2]
[361425865,1747563049600,-450.0,0.00014931,2]
[361425867,1747563049610,-243.4,0.00014931,2]
[361425869,1747563049619,-618.84,0.00014931,2]
[361425871,1747563049629,-4451.65972749,0.00014981,2]
[361425873,1747563049640,-160.0,0.00015,2]
[361425875,1747563049650,-3759.5711344,0.00015038,2]
[361425877,1747563049660,-1000.0,0.00015048,2]
[361425879,1747563049669,-450.0,0.00015068,2]
[361425881,1747563049679,-272.65,0.00015068,2]
[361425883,1747563049689,-450.0,0.00015068,2]
[361425884,1747563049698,-483.2,0.00015068,2]
[361425887,1747563049708,-1437.11,0.00015068,2]
[361425888,1747563049717,-1099.66,0.00015068,2]
[361425890,1747563049726,-450.24,0.00015068,2]
[361425893,1747563049736,-481.83,0.00015068,2]
[361425895,1747563049745,-450.0,0.00015068,2]
[361425909,1747563049871,-450.0,0.00015068,2]
[361425911,1747563049881,-450.0,0.00015068,2]
[361425913,1747563049890,-327.77,0.00015068,2]
[361425915,1747563049900,-935.74,0.00015068,2]
[361425917,1747563049909,-450.0,0.00015068,2]
[361425919,1747563049918,-618.84,0.00015068,2]
[361425921,1747563049927,-372.48068192,0.00015087,2]
[361425923,1747563049937,-500.0,0.00015147,2]
[361425925,1747563049946,-518.43483232,0.00015148,2]
[361425927,1747563049956,-344.4739246,0.0001518,2]
[361425929,1747563049965,-450.0,0.00015205,2]
[361425931,1747563049974,-450.0,0.00015205,2]
[361425933,1747563049983,-483.2,0.00015205,2]
[361425935,1747563049993,-1437.11,0.00015205,2]
[361425937,1747563050002,-1099.66,0.00015205,2]
[361425939,1747563050011,-481.83,0.00015205,2]
[361425941,1747563050020,-450.0,0.00015205,2]
[361425943,1747563050030,-450.0,0.00015205,2]
[361425945,1747563050039,-450.0,0.00015205,2]
[361425947,1747563050048,-935.74,0.00015205,2]
[361425949,1747563050057,-450.0,0.00015205,2]
[361425951,1747563050067,-618.84,0.00015205,2]
[361425953,1747563050077,-450.0,0.00015342,2]
[361425955,1747563050086,-450.0,0.00015342,2]
[361425957,1747563050095,-483.2,0.00015342,2]
[361425959,1747563050104,-1437.11,0.00015342,2]
[361425961,1747563050115,-1099.66,0.00015342,2]
[361425963,1747563050124,-481.83,0.00015342,2]
[361425965,1747563050134,-450.0,0.00015342,2]
[361425967,1747563050144,-450.0,0.00015342,2]
[361425969,1747563050154,-450.0,0.00015342,2]
[361425971,1747563050163,-935.74,0.00015342,2]
[361425973,1747563050172,-450.0,0.00015342,2]
[361425975,1747563050181,-618.84,0.00015342,2]
[361425977,1747563050191,-3759.5711344,0.00015417,2]
[361425979,1747563050200,-450.0,0.00015479,2]
[361425981,1747563050209,-450.0,0.00015479,2]
[361425983,1747563050219,-483.2,0.00015479,2]
[361425985,1747563050228,-1437.11,0.00015479,2]
[361425987,1747563050237,-151.0,0.00015479,2]
[361425989,1747563050247,-228.344291,0.00015479,2]
[361425991,1747563050257,-151.0,0.00015479,2]
[361425993,1747563050266,-1099.66,0.00015479,2]
[361425995,1747563050275,-151.0,0.00015479,2]
[361425997,1747563050285,-151.0,0.00015479,2]
[361425999,1747563050294,-151.0,0.00015479,2]
[361426001,1747563050303,-151.0,0.00015479,2]
[361426003,1747563050313,-481.83,0.00015479,2]
[361426005,1747563050323,-450.0,0.00015479,2]
[361426007,1747563050332,-450.0,0.00015479,2]
[361426009,1747563050342,-450.0,0.00015479,2]
[361426011,1747563050351,-935.74,0.00015479,2]
[361426013,1747563050360,-450.0,0.00015479,2]
[361426015,1747563050369,-618.84,0.00015479,2]
[361426017,1747563050378,-1500.0,0.00015596,2]
[361426019,1747563050388,-450.0,0.00015616,2]
[361426021,1747563050397,-450.0,0.00015616,2]
[361426023,1747563050406,-483.2,0.00015616,2]
[361426025,1747563050416,-1437.11,0.00015616,2]
[361426027,1747563050425,-1099.66,0.00015616,2]
[361426029,1747563050435,-481.83,0.00015616,2]
[361426031,1747563050444,-450.0,0.00015616,2]
[361426033,1747563050453,-450.0,0.00015616,2]
[361426035,1747563050462,-450.0,0.00015616,2]
[361426037,1747563050471,-935.74,0.00015616,2]
[361426039,1747563050481,-450.0,0.00015616,2]
[361426041,1747563050490,-618.84,0.00015616,2]
[361426043,1747563050499,-450.0,0.00015753,2]
[361426045,1747563050508,-480.18,0.00015753,2]
[361426047,1747563050517,-483.2,0.00015753,2]
[361426049,1747563050526,-1437.11,0.00015753,2]
[361426051,1747563050535,-1099.66,0.00015753,2]
[361426053,1747563050544,-481.83,0.00015753,2]
[361426055,1747563050554,-450.0,0.00015753,2]
[361426057,1747563050566,-234.29,0.00015753,2]
[361426059,1747563050575,-450.0,0.00015753,2]
[361426061,1747563050584,-935.74,0.00015753,2]
[361426063,1747563050593,-262.68,0.00015753,2]
[361426065,1747563050602,-618.84,0.00015753,2]
[361426067,1747563050612,-3759.5711344,0.00015797,2]
[361426068,1747563050622,-250.0,0.0001584,2]
[361426071,1747563050632,-450.0,0.0001589,2]
[361426073,1747563050641,-483.2,0.0001589,2]
[361426075,1747563050651,-1437.11,0.0001589,2]
[361426077,1747563050660,-1099.66,0.0001589,2]
[361426079,1747563050669,-481.83,0.0001589,2]
[361426081,1747563050678,-450.0,0.0001589,2]
[361426083,1747563050688,-450.0,0.0001589,2]
[361426085,1747563050697,-935.74,0.0001589,2]
[361426087,1747563050706,-618.84,0.0001589,2]
[361426089,1747563050715,-404.0,0.00015952,2]
[361426091,1747563050724,-998.24360331,0.00016,3]
[361426093,1747563050733,-12636.50182523,0.00016,3]
[361426095,1747563050742,-500.0,0.00016026,2]